fUST/lending_fUST_20240128
["ID","MTS","AMOUNT","RATE_DAILY","PERIOD"]
[312865722,1706379039943,-500.0,0.00030999,2]
[312865723,1706379039951,-500.0,0.00030999,2]
[312865724,1706379039960,-500.0,0.00030999,2]
[312865725,1706379039969,-500.0,0.00030999,2]
[312865726,1706379039978,-500.0,0.00030999,2]
[312865727,1706379039986,-500.0,0.00030999,2]
[312865728,1706379039995,-500.0,0.00030999,2]
[312865729,1706379040004,-500.0,0.00030999,2]
[312865730,1706379040013,-500.0,0.00030999,2]
[312865731,1706379040023,-500.0,0.00030999,2]
[312865732,1706379040031,-500.0,0.00030999,2]
[312865733,1706379040041,-500.0,0.00030999,2]
[312865734,1706379040050,-500.0,0.00030999,2]
[312865735,1706379040059,-500.0,0.00030999,2]
[312865736,1706379040067,-500.0,0.00030999,2]
[312865737,1706379040076,-500.0,0.00030999,2]
[312865738,1706379040085,-207.74651376,0.00030999,2]
[312865739,1706379040094,-500.0,0.00030999,2]
[312865740,1706379040103,-500.0,0.00030999,2]
[312865741,1706379040112,-350.0,0.00030999,2]
[312865742,1706379040121,-500.0,0.00030999,2]
[312865743,1706379040130,-500.0,0.00030999,2]
[312865744,1706379040140,-500.0,0.00030999,2]
[312865745,1706379040148,-500.0,0.00030999,2]
[312865746,1706379040158,-409.90360748,0.00030999,2]
[312865747,1706379040167,-500.0,0.00030999,2]
[312865748,1706379040176,-500.0,0.00030999,2]
[312865749,1706379040186,-500.0,0.00030999,2]
[312865750,1706379040197,-500.0,0.00030999,2]
[312865751,1706379040207,-500.0,0.00030999,2]
[312865752,1706379040219,-500.0,0.00030999,2]
[312865753,1706379040229,-500.0,0.00030999,2]
[312865754,1706379040239,-500.0,0.00030999,2]
[312865755,1706379040248,-500.0,0.00030999,2]
[312865756,1706379040259,-500.0,0.00030999,2]
[312865757,1706379040268,-500.0,0.00030999,2]
[312865758,1706379040278,-500.0,0.00030999,2]
[312865759,1706379040290,-500.0,0.00030999,2]
[312865760,1706379040299,-500.0,0.00030999,2]
[312865761,1706379040308,-500.0,0.00030999,2]
[312865762,1706379040318,-500.0,0.00030999,2]
[312865763,1706379040326,-500.0,0.00030999,2]
[312865764,1706379040335,-500.0,0.00030999,2]
[312865765,1706379040345,-500.0,0.00030999,2]
[312865766,1706379040354,-500.0,0.00030999,2]
[312865767,1706379040363,-196.46763306,0.00030999,2]
[312865768,1706379040375,-500.0,0.00030999,2]
[312865769,1706379040384,-500.0,0.00030999,2]
[312865770,1706379040393,-500.0,0.00030999,2]
[312865771,1706379040402,-500.0,0.00030999,2]
[312865772,1706379040412,-500.0,0.00030999,2]
[312865773,1706379040421,-500.0,0.00030999,2]
[312865774,1706379040430,-500.0,0.00030999,2]
[312865775,1706379040439,-500.0,0.00030999,2]
[312865776,1706379040451,-500.0,0.00030999,2]
[312865777,1706379040462,-500.0,0.00030999,2]
[312865778,1706379040471,-500.0,0.00030999,2]
[312865779,1706379040481,-500.0,0.00030999,2]
[312865780,1706379040490,-500.0,0.00030999,2]
[312865781,1706379040502,-500.0,0.00030999,2]
[312865782,1706379040513,-261.5258,0.00030999,2]
[312865783,1706379040523,-379.02178062,0.00030999,2]
[312865784,1706379040532,-500.0,0.00030999,2]
[312865785,1706379040541,-500.0,0.00030999,2]
[312865786,1706379040550,-500.0,0.00030999,2]
[312865787,1706379040559,-500.0,0.00030999,2]
[312865788,1706379040567,-500.0,0.00030999,2]
[312865789,1706379040577,-500.0,0.00030999,2]
[312865790,1706379040585,-500.0,0.00030999,2]
[312865791,1706379040594,-500.0,0.00030999,2]
[312865792,1706379040603,-500.0,0.00030999,2]
[312865793,1706379040612,-500.0,0.00030999,2]
[312865794,1706379040621,-500.0,0.00030999,2]
[312865795,1706379040630,-500.0,0.00030999,2]
[312865796,1706379040639,-500.0,0.00030999,2]
[312865797,1706379040648,-209.58224829,0.00030999,2]
[312865798,1706379040657,-500.0,0.00030999,2]
[312865799,1706379040665,-500.0,0.00030999,2]
[312865800,1706379040674,-500.0,0.00030999,2]
[312865801,1706379040683,-500.0,0.00030999,2]
[312865802,1706379040692,-500.0,0.00030999,2]
[312865803,1706379040701,-500.0,0.00030999,2]
[312865804,1706379040711,-500.0,0.00030999,2]
[312865805,1706379040721,-500.0,0.00030999,2]
[312865806,1706379040731,-500.0,0.00030999,2]
[312865807,1706379040741,-500.0,0.00030999,2]
[312865808,1706379040752,-429.838,0.00030999,2]
[312865809,1706379040761,-500.0,0.00030999,2]
[312865810,1706379040771,-500.0,0.00030999,2]
[312865811,1706379040780,-356.62024981,0.00030999,2]
[312865812,1706379040789,-500.0,0.00030999,2]
[312865813,1706379040799,-500.0,0.00030999,2]
[312865814,1706379040808,-500.0,0.00030999,2]
[312865815,1706379040817,-500.0,0.00030999,2]
[312865816,1706379040826,-500.0,0.00030999,2]
[312865817,1706379040835,-500.0,0.00030999,2]
[312865818,1706379040844,-500.0,0.00030999,2]
[312865819,1706379040853,-500.0,0.00030999,2]
[312865820,1706379040862,-500.0,0.00030999,2]
[312865821,1706379040871,-500.0,0.00030999,2]
[312865822,1706379040881,-353.67560624,0.00030999,2]
[312865823,1706379040890,-500.0,0.00030999,2]
[312865824,1706379040899,-499.99999999,0.00030999,2]
[312865825,1706379040909,-500.0,0.00030999,2]
[312865826,1706379040918,-170.56154962,0.00030999,2]
[312865827,1706379040928,-500.0,0.00030999,2]
[312865828,1706379040937,-161.43393847,0.00031,4]
[312865829,1706379040945,-146331.23431888,0.00031,2]
[312865830,1706379041021,-155.75566433,0.00031015,2]
[312865831,1706379041031,-299.919992,0.00031115,2]
[312865833,1706379041041,-632.68080163,0.00031375,2]
[312865834,1706379041050,-158.508265,0.00031507,2]
[312865835,1706379041060,-168.76336281,0.00031876,5]
[312865836,1706379041069,-155.01860223,0.00032,4]
[312865837,1706379041078,-155.01860223,0.00032,4]
[312865838,1706379041088,-39131.00414303,0.00032,15]
[312865839,1706379041097,-3138.37234854,0.00032,2]
[312865840,1706379041106,-1000.0,0.00032,32]
[312865841,1706379041115,-299.919992,0.00032094,2]
[312865842,1706379041124,-9132.4701419,0.00032258,5]
[312865843,1706379041134,-50000.0,0.00032698,7]
[312865844,1706379041143,-158.508265,0.00032877,2]
[312865845,1706379041153,-620.63404008,0.00032944,2]
[312865846,1706379041162,-173.8,0.00032979,2]
[312865847,1706379041171,-173.8,0.00032979,2]
[312865848,1706379041180,-173.8,0.00032979,2]
[312865849,1706379041189,-173.8,0.00032979,2]
[312865850,1706379041198,-173.8,0.00032979,2]
[312865851,1706379041207,-173.8,0.00032979,2]
[312865852,1706379041217,-173.8,0.00032979,2]
[312865853,1706379041228,-173.8,0.00032979,2]
[312865854,1706379041239,-173.8,0.00032979,2]
[312865855,1706379041250,-173.89,0.00032979,2]
[312865856,1706379041261,-47637.87973738,0.0003298,4]
[312865857,1706379041276,-10202.84952288,0.0003298,4]
[312865858,1706379041750,-1140.89088659,0.0003298,4]
[312865859,1706379041764,-41814.25572659,0.0003298,4]
[312865860,1706379041803,-3363.71653998,0.0003298,4]
[312865947,1706379046681,-769.0,0.00020997,2]
[312866639,1706379280936,5000.0,0.000222,4]
[312866640,1706379288853,1733.69597004,0.000222,4]
[312866641,1706379292806,22059.40721847,0.000295,30]
[312866642,1706379295209,155.01860223,0.00020996,4]
[312866643,1706379306796,2979.78918367,0.000295,30]
[312866644,1706379365196,10000.0,0.00022,120]
[312866645,1706379365228,4037.95,0.00022,120]
[312866649,1706379430208,155.01860223,0.0002089,4]
[312866650,1706379473866,5000.0,0.000221,7]
[312866651,1706379482918,5000.0,0.000221,7]
[312866653,1706379490480,5000.0,0.000221,7]
[312866654,1706379498520,5000.0,0.000221,7]
[312866655,1706379506505,5000.0,0.000221,7]
[312866658,1706379514694,5000.0,0.000221,7]
[312866659,1706379523207,1094.6980244,0.000221,7]
[312866662,1706379569236,155.01860223,0.0002088,4]
[312866669,1706379665148,3929.61353052,0.00022,120]
[312866670,1706379665170,6070.38646948,0.00022,120]
[312866677,1706379694273,155.01860223,0.0002087,4]
[312866679,1706379705925,5000.0,0.000211,4]
[312866680,1706379714385,5000.0,0.000211,4]
[312866682,1706379722910,2309.68951354,0.000211,4]
[312866687,1706379911047,5000.0,0.000211,5]
[312866689,1706379919228,5000.0,0.000211,5]
[312866690,1706379927337,988.82730515,0.000211,5]
[312866875,1706380237834,-167.068647,0.00019351,2]
[312866877,1706380237844,-1226.68568477,0.00019999,2]
[312866879,1706380237853,-155.01860223,0.0002,2]
[312866881,1706380237862,-2009.31889645,0.0002,2]
[312866883,1706380237872,-7818.02905683,0.0002058,2]
[312866885,1706380237881,-1199.09633829,0.00020581,2]
[312866887,1706380237890,-2710.54181066,0.00020581,2]
[312866889,1706380237899,-155.01860223,0.00020581,2]
[312866891,1706380237909,-608.60582345,0.00020581,2]
[312866893,1706380237918,-155.01860223,0.00020582,4]
[312866895,1706380237927,-679.3029243,0.00020582,2]
[312866897,1706380237936,-301.22376083,0.00020597,2]
[312866898,1706380237946,-2075.77672297,0.00020699,2]
[312866901,1706380237957,-471.05101678,0.00020699,2]
[312866904,1706380237967,-309.9690031,0.000207,2]
[312866908,1706380237976,-24900.0,0.00020701,2]
[312866910,1706380237986,-168.76336281,0.00020897,2]
[312866912,1706380237995,-1269.15210475,0.00020997,2]
[312866914,1706380238005,-8976.73889241,0.00020997,2]
[312866916,1706380238013,-300.0,0.000211,2]
[312866918,1706380238022,-166.666666,0.00021918,2]
[312866920,1706380238031,-2036.12411825,0.00022,2]
[312866922,1706380238041,-3971.98419525,0.00022,2]
[312866924,1706380238050,-426.38170713,0.00022,2]
[312866926,1706380238060,-327.61566675,0.00022,2]
[312866928,1706380238068,-166.666666,0.00022431,2]
[312866930,1706380238077,-166.666666,0.00022944,2]
[312866932,1706380238086,-1416.67721386,0.00023,2]
[312866934,1706380238096,-9947.92180076,0.00023,2]
[312866936,1706380238105,-166.666666,0.00023456,2]
[312866938,1706380238114,-166.666666,0.00023969,2]
[312866940,1706380238123,-4017.99473219,0.00024,2]
[312866942,1706380238131,-166.666666,0.00024482,2]
[312866944,1706380238140,-851.06760342,0.00025,2]
[312866946,1706380238149,-7649.9786433,0.00025,2]
[312866948,1706380238159,-4727.98807036,0.00025,2]
[312866950,1706380238168,-633.97004101,0.00027556,2]
[312866952,1706380238176,-385.72665281,0.00028,2]
[312866954,1706380238185,-620.69850205,0.00028934,2]
[312866956,1706380238194,-1933.42796518,0.00029,2]
[312866958,1706380238203,-9132.4701419,0.00029,4]
[312866960,1706380238212,-153.0,0.00029178,2]
[312866962,1706380238221,-153.0,0.00029315,2]
[312866964,1706380238230,-153.0,0.00029315,2]
[312866966,1706380238239,-153.2223878,0.00029315,2]
[312866968,1706380238248,-199.3339408,0.00029315,2]
[312866970,1706380238258,-153.2749493,0.00029315,2]
[312866972,1706380238267,-764.75702273,0.000295,2]
[312866974,1706380238276,-303.74433034,0.000295,2]
[312866976,1706380238286,-3194.88866007,0.000295,2]
[312866978,1706380238294,-155.75566433,0.000299,2]
[312866980,1706380238303,-9244.21,0.0002995,3]
[312866982,1706380238313,-4772.09048546,0.0003,2]
[312866984,1706380238322,-300.0,0.0003,10]
[312866986,1706380238331,-244.44828906,0.0003,4]
[312866988,1706380238340,-146331.23431988,0.0003,4]
[312866990,1706380238348,-155.01860323,0.0003,4]
[312866992,1706380238359,-195.57103754,0.0003,2]
[312866994,1706380238368,-689.09430435,0.0003,4]
[312866996,1706380238380,-193.0,0.0003,2]
[312866999,1706380238390,-344.289261,0.00030137,2]
[312867001,1706380238399,-158.396714,0.00030137,2]
[312867003,1706380238408,-11146.76595907,0.00030157,4]
[312867005,1706380238418,-1394.86355531,0.00030157,2]
[312867006,1706380238428,-5000.0,0.00030157,7]
[312867008,1706380238437,-42746.85775028,0.00030163,4]
[312867010,1706380238446,-10812.67879233,0.00030163,3]
[312867021,1706380238538,-620.0349251,0.00030381,2]
[312867023,1706380238547,-161.43393847,0.00031,4]
[312867025,1706380238556,-344.289261,0.00031115,2]
[312867027,1706380238565,-158.396714,0.00031233,2]
[312867029,1706380238575,-290.38230678,0.0003132,4]
[312867031,1706380238584,-860.93697732,0.00031961,2]
[312867033,1706380238593,-155.01860223,0.00032,4]
[312867035,1706380238602,-155.01860223,0.00032,4]
[312867037,1706380238611,-344.289261,0.00032094,2]
[312867039,1706380238620,-158.396714,0.00032329,2]
[312867041,1706380238629,-50000.0,0.00032714,7]
[312867043,1706380238639,-500.0,0.00032879,7]
[312867045,1706380238648,-500.0,0.00032879,7]
[312867047,1706380238657,-190.40084948,0.00032879,7]
[312867049,1706380238666,-500.0,0.00032879,7]
[312867051,1706380238675,-500.0,0.00032879,7]
[312867053,1706380238684,-500.0,0.00032879,7]
[312867055,1706380238693,-500.0,0.00032879,7]
[312867057,1706380238702,-500.0,0.00032879,7]
[312867059,1706380238711,-500.0,0.00032879,7]
[312867061,1706380238720,-500.0,0.00032879,7]
[312867063,1706380238729,-500.0,0.00032879,7]
[312867065,1706380238738,-500.0,0.00032879,7]
[312867067,1706380238746,-500.0,0.00032879,7]
[312867069,1706380238755,-500.0,0.00032879,7]
[312867071,1706380238764,-500.0,0.00032879,7]
[312867073,1706380238773,-500.0,0.00032879,7]
[312867075,1706380238784,-500.0,0.00032879,7]
[312867077,1706380238797,-500.0,0.00032879,7]
[312867079,1706380238806,-500.0,0.00032879,7]
[312867081,1706380238815,-500.0,0.00032879,7]
[312867083,1706380238825,-500.0,0.00032879,7]
[312867085,1706380238834,-500.0,0.00032879,7]
[312867087,1706380238844,-500.0,0.00032879,7]
[312867089,1706380238853,-500.0,0.00032879,7]
[312867091,1706380238863,-500.0,0.00032879,7]
[312867094,1706380238872,-500.0,0.00032879,7]
[312867096,1706380238881,-500.0,0.00032879,7]
[312867098,1706380238890,-500.0,0.00032879,7]
[312867100,1706380238899,-500.0,0.00032879,7]
[312867102,1706380238908,-500.0,0.00032879,7]
[312867104,1706380238917,-500.0,0.00032879,7]
[312867106,1706380238926,-196.46763306,0.00032879,7]
[312867108,1706380238935,-500.0,0.00032879,7]
[312867110,1706380238944,-207.74651376,0.00032879,7]
[312867112,1706380238953,-500.0,0.00032879,7]
[312867114,1706380238962,-500.0,0.00032879,7]
[312867116,1706380238970,-500.0,0.00032879,7]
[312867118,1706380238979,-160.0,0.00032879,7]
[312867120,1706380238988,-500.0,0.00032879,7]
[312867122,1706380238997,-500.0,0.00032879,7]
[312867124,1706380239007,-500.0,0.00032879,7]
[312867126,1706380239016,-500.0,0.00032879,7]
[312867128,1706380239025,-409.90360748,0.00032879,7]
[312867130,1706380239035,-200.0,0.00032879,7]
[312867131,1706380239045,-500.0,0.00032879,7]
[312867134,1706380239055,-500.0,0.00032879,7]
[312867136,1706380239066,-500.0,0.00032879,7]
[312867138,1706380239075,-500.0,0.00032879,7]
[312867140,1706380239084,-500.0,0.00032879,7]
[312867141,1706380239093,-500.0,0.00032879,7]
[312867144,1706380239103,-500.0,0.00032879,7]
[312867146,1706380239112,-500.0,0.00032879,7]
[312867148,1706380239122,-500.0,0.00032879,7]
[312867149,1706380239131,-641.15258,0.00032879,7]
[312867151,1706380239142,-500.0,0.00032879,7]
[312867154,1706380239152,-500.0,0.00032879,7]
[312867155,1706380239162,-500.0,0.00032879,7]
[312867157,1706380239170,-500.0,0.00032879,7]
[312867160,1706380239180,-603.67560624,0.00032879,7]
[312867161,1706380239189,-500.0,0.00032879,7]
[312867162,1706380239198,-500.0,0.00032879,7]
[312867163,1706380239206,-500.0,0.00032879,7]
[312867164,1706380239215,-500.0,0.00032879,7]
[312867165,1706380239224,-500.0,0.00032879,7]
[312867166,1706380239232,-500.0,0.00032879,7]
[312867167,1706380239241,-500.0,0.00032879,7]
[312867168,1706380239250,-500.0,0.00032879,7]
[312867169,1706380239258,-500.0,0.00032879,7]
[312867170,1706380239267,-500.0,0.00032879,7]
[312867171,1706380239276,-500.0,0.00032879,7]
[312867172,1706380239285,-500.0,0.00032879,7]
[312867174,1706380239294,-500.0,0.00032879,7]
[312867176,1706380239303,-500.0,0.00032879,7]
[312867178,1706380239312,-500.0,0.00032879,7]
[312867179,1706380239321,-500.0,0.00032879,7]
[312867181,1706380239330,-500.0,0.00032879,7]
[312867184,1706380239340,-500.0,0.00032879,7]
[312867185,1706380239350,-500.0,0.00032879,7]
[312867186,1706380239359,-500.0,0.00032879,7]
[312867187,1706380239368,-406.2024981,0.00032879,7]
[312867188,1706380239377,-457.22742,0.00032879,7]
[312867189,1706380239386,-600.0,0.00032879,7]
[312867190,1706380239395,-500.0,0.00032879,7]
[312867191,1706380239405,-500.0,0.00032879,7]
[312867192,1706380239414,-500.0,0.00032879,7]
[312867193,1706380239424,-500.0,0.00032879,7]
[312867194,1706380239433,-500.0,0.00032879,7]
[312867195,1706380239442,-500.0,0.00032879,7]
[312867196,1706380239451,-500.0,0.00032879,7]
[312867197,1706380239460,-500.0,0.00032879,7]
[312867198,1706380239469,-500.0,0.00032879,7]
[312867199,1706380239478,-500.0,0.00032879,7]
[312867200,1706380239487,-500.0,0.00032879,7]
[312867201,1706380239496,-500.0,0.00032879,7]
[312867202,1706380239505,-500.0,0.00032879,7]
[312867203,1706380239514,-500.0,0.00032879,7]
[312867204,1706380239523,-500.0,0.00032879,7]
[312867205,1706380239532,-500.0,0.00032879,7]
[312867206,1706380239542,-500.0,0.00032879,7]
[312867207,1706380239551,-500.0,0.00032879,7]
[312867208,1706380239560,-500.0,0.00032879,7]
[312867209,1706380239569,-500.0,0.00032879,7]
[312867210,1706380239578,-500.0,0.00032879,7]
[312867211,1706380239587,-179.02178062,0.00032879,7]
[312867212,1706380239596,-500.0,0.00032879,7]
[312867213,1706380239605,-500.0,0.00032879,7]
[312867214,1706380239615,-500.0,0.00032879,7]
[312867215,1706380239624,-500.0,0.00032879,7]
[312867216,1706380239633,-500.0,0.00032879,7]
[312867217,1706380239642,-500.0,0.00032879,7]
[312867218,1706380239651,-500.0,0.00032879,7]
[312867219,1706380239660,-500.0,0.00032879,7]
[312867220,1706380239669,-500.0,0.00032879,7]
[312867221,1706380239679,-500.0,0.00032879,7]
[312867222,1706380239687,-499.99999999,0.00032879,7]
[312867223,1706380239696,-500.0,0.00032879,7]
[312867224,1706380239705,-170.56154962,0.00032879,7]
[312867225,1706380239715,-23122.33521581,0.0003288,2]
[312867226,1706380239732,-10202.84952288,0.0003288,2]
[312867230,1706380243523,-155.01860223,0.0001935,3]
[312867231,1706380243532,-1583.7528565,0.00019998,2]
[312867232,1706380243542,-2074.43322976,0.0002999,3]
[312867233,1706380243577,-3230.63245382,0.0002999,3]
[312867235,1706380244168,-2657.65001381,0.0002999,3]
[312867457,1706381438021,-1226.68568477,0.00021897,2]
[312867458,1706381438031,-7818.02905683,0.00021898,2]
[312867459,1706381438040,-155.01860223,0.00021898,4]
[312867460,1706381438049,-679.3029243,0.00021899,2]
[312867461,1706381438058,-323.81325475,0.00021899,2]
[312867512,1706381441087,-284.7925687,0.00021899,2]
[312867513,1706381441096,-168.76336281,0.000219,2]
[312867514,1706381441106,-2710.54181066,0.00021909,2]
[312867515,1706381441115,-214.7525871,0.00021909,2]
[312867642,1706381669763,7542.970212,0.0003,120]
[312867643,1706381670310,6096.52663763,0.0003,30]
[312867910,1706382634023,-608.60582345,0.00018324,2]
[312867912,1706382634033,-155.01860223,0.00018325,3]
[312867914,1706382634042,-1540.36050359,0.00018325,2]
[312867945,1706382638157,-2710.54181066,0.00018323,2]
[312867947,1706382638166,-736.63621008,0.00018325,2]
[312867949,1706382638178,-1197.30370491,0.00018325,2]
[312868040,1706382642897,-712.41774421,0.00018325,2]
[312868055,1706382645249,155.01860223,0.00016498,3]
[312868145,1706382671245,155.01860223,0.00016498,3]
[312868146,1706382687387,155.01860223,0.00016498,3]
[312868147,1706382705243,155.01860223,0.00016498,3]
[312868148,1706382721249,155.01860223,0.00016498,3]
[312868149,1706382737245,155.01860223,0.00016498,3]
[312868150,1706382757241,155.01860223,0.00016498,3]
[312868151,1706382773351,155.01860223,0.00016498,3]
[312868152,1706382787249,155.01860223,0.00016498,3]
[312868153,1706382805247,155.01860223,0.00016498,3]
[312868154,1706382821268,155.01860223,0.00016498,3]
[312868155,1706382837259,155.01860223,0.00016498,3]
[312868163,1706383003298,199.3903337,0.00013891,2]
[312868164,1706383009829,269.755107,0.0001388,2]
[312868165,1706383026829,172.990764,0.00013878,2]
[312868166,1706383048084,682.89040975,0.0001388,2]
[312868167,1706383066089,682.89040975,0.0001388,2]
[312868168,1706383072270,492.0829758,0.00013879,2]
[312868169,1706383072299,1363.80938288,0.00013879,2]
[312868170,1706383082095,206.94505339,0.0001388,2]
[312868171,1706383089124,234.22407312,0.0001388,2]
[312868172,1706383094066,1289.41713019,0.0001388,2]
[312868173,1706383105078,234.22407312,0.00013879,2]
[312868174,1706383110060,1289.41713019,0.00013879,2]
[312868175,1706383127123,234.22407312,0.00013879,2]
[312868176,1706383130885,-348.0,0.00021952,7]
[312868177,1706383134063,902.87531459,0.00013879,2]
[312868178,1706383143118,164.77707908,0.00013879,2]
[312868202,1706383259247,2641.3099089,0.00013894,2]
[312868210,1706383370744,16438.77678142,0.00013806,2]
[312868230,1706383823887,24900.0,0.00012708,2]
[312868232,1706383825683,100.0,0.00012664,2]
[312868261,1706383832298,-2709.77507073,0.00012664,2]
[312868273,1706383832403,-856.55185557,0.00012664,2]
[312868275,1706383832413,-155.01860223,0.00013653,2]
[312868277,1706383832421,-261.82155101,0.00013654,2]
[312868279,1706383832433,-981.54927781,0.00013654,2]
[312868281,1706383832442,-608.60582345,0.00013655,2]
[312868282,1706383832451,-500.0,0.00013655,2]
[312868284,1706383832461,-21701.07731623,0.00013655,2]
[312868286,1706383832471,-20915.89787581,0.00013655,2]
[312868288,1706383832480,-155.01860223,0.00013656,2]
[312868290,1706383832489,-527.10191996,0.00013656,2]
[312868292,1706383832499,-1254.50882971,0.00013656,2]
[312868294,1706383832507,-19715.74438324,0.00013656,2]
[312868296,1706383832516,-5212.65916057,0.00013657,2]
[312868299,1706383832526,-7818.02905683,0.00013657,2]
[312868301,1706383832535,-155.01860223,0.00013657,2]
[312868302,1706383832544,-4403.91370357,0.00013658,2]
[312868305,1706383832555,-413.45119609,0.00013658,2]
[312868307,1706383832564,-734.6050481,0.00013658,2]
[312868342,1706383838346,-155.01860223,0.00012663,2]
[312868344,1706383838356,-1306.03432016,0.00013658,2]
[312868345,1706383838365,-1855.89235868,0.00013659,2]
[312868347,1706383838375,-262.54949426,0.00013659,2]
[312868349,1706383838384,-1226.68568477,0.00013659,2]
[312868352,1706383838395,-581.42890001,0.00013659,2]
[312868353,1706383838404,-4106.34079677,0.0001366,2]
[312868356,1706383838414,-295.12770733,0.0001366,2]
[312868357,1706383838423,-155.01860223,0.00013667,2]
[312868359,1706383838432,-197.7452185,0.00013687,2]
[312868360,1706383838441,-163.45013288,0.00013688,2]
[312868361,1706383838451,-220.1347374,0.00013699,2]
[312868362,1706383838460,-471.05101678,0.000138,2]
[312868364,1706383838469,-2075.77672297,0.000138,2]
[312868366,1706383838479,-194.69458043,0.00014704,2]
[312868367,1706383838488,-588.69915361,0.00014804,2]
[312868368,1706383838497,-595.45090393,0.00014804,2]
[312868369,1706383838506,-1513.35450876,0.00014806,2]
[312868370,1706383838516,-155.02325349,0.00014807,2]
[312868371,1706383838525,-155.17713693,0.00014807,2]
[312868372,1706383838534,-166.05500787,0.00014809,2]
[312868373,1706383838544,-155.07019684,0.00014809,2]
[312868374,1706383838553,-155.14456294,0.00014809,2]
[312868375,1706383838563,-155.40093284,0.00014809,2]
[312868376,1706383838572,-345.05626457,0.00014809,2]
[312868378,1706383838581,-209.61775108,0.00014809,2]
[312868380,1706383838590,-155.17369071,0.00014809,2]
[312868382,1706383838600,-1994.28554433,0.00014809,2]
[312868384,1706383838608,-20606.61019362,0.00014809,2]
[312868386,1706383838617,-194.07706277,0.00014809,2]
[312868388,1706383838627,-155.07502483,0.00014809,2]
[312868390,1706383838637,-555.44587219,0.00014809,2]
[312868392,1706383838647,-2348.08731336,0.0001481,2]
[312868394,1706383838656,-75256.83605509,0.0001481,2]
[312868396,1706383838665,-151.0,0.0001481,2]
[312868398,1706383838675,-151.0,0.0001481,2]
[312868401,1706383838684,-151.0,0.0001481,2]
[312868403,1706383838693,-151.0,0.0001481,2]
[312868405,1706383838703,-151.0,0.0001481,2]
[312868407,1706383838712,-177.081045,0.0001481,2]
[312868409,1706383838721,-177.081045,0.0001481,2]
[312868410,1706383838731,-287.482269,0.0001481,2]
[312868412,1706383838740,-207.550108,0.0001481,2]
[312868414,1706383838750,-207.550108,0.0001481,2]
[312868417,1706383838759,-207.550108,0.0001481,2]
[312868418,1706383838769,-207.550108,0.0001481,2]
[312868421,1706383838778,-151.0,0.0001481,2]
[312868422,1706383838787,-151.0,0.0001481,2]
[312868425,1706383838797,-151.0,0.0001481,2]
[312868427,1706383838806,-151.0,0.0001481,2]
[312868429,1706383838815,-628.455055,0.0001481,2]
[312868431,1706383838824,-628.455055,0.0001481,2]
[312868433,1706383838834,-628.455055,0.0001481,2]
[312868435,1706383838844,-628.455055,0.0001481,2]
[312868436,1706383838854,-8344.591457,0.0001481,2]
[312868439,1706383838863,-8344.591457,0.0001481,2]
[312868440,1706383838872,-8344.591457,0.0001481,2]
[312868443,1706383838881,-8344.591457,0.0001481,2]
[312868444,1706383838891,-4124.055656,0.0001481,2]
[312868446,1706383838900,-4124.055656,0.0001481,2]
[312868448,1706383838910,-4124.055656,0.0001481,2]
[312868450,1706383838920,-4124.055656,0.0001481,2]
[312868452,1706383838929,-151.0,0.0001481,2]
[312868454,1706383838939,-151.0,0.0001481,2]
[312868456,1706383838948,-178.68787954,0.00014945,2]